[Event "Titled Tuesday Blitz June 15 2021"]
[White "Tejedor Fuente, Enrique"]
[Black "Bok, Benjamin"]
[WhiteFideId "2299100"]
[BlackFideId "1017063"]
[WhiteElo "2535"]
[BlackElo "2658"]
[Result "0-1"]
[Round "06"]
[TimeControl "180+1"]
[Date "2021.06.15"]
[WhiteClock "0:00:01"]
[BlackClock "0:00:01"]

1. d4 {[%clk 0:02:58]}  Nf6 {[%clk 0:02:59]} 2. c4 {[%clk 0:02:57]}  e6 {[%clk 0:03:00]} 3. Nc3 {[%clk 0:02:52]}  Bb4 {[%clk 0:02:59]} 4. f3 {[%clk 0:02:46]}  c5 {[%clk 0:02:48]} 5. d5 {[%clk 0:02:42]}  b5 {[%clk 0:02:42]} 6. e4 {[%clk 0:02:36]}  d6 {[%clk 0:02:42]} 7. Ne2 {[%clk 0:02:12]}  O-O {[%clk 0:02:02]} 8. a3 {[%clk 0:02:08]}  Ba5 {[%clk 0:01:58]} 9. cxb5 {[%clk 0:02:00]}  exd5 {[%clk 0:01:58]} 10. exd5 {[%clk 0:02:00]}  Re8 {[%clk 0:01:52]} 11. Bg5 {[%clk 0:02:00]}  Nbd7 {[%clk 0:01:42]} 12. Rb1 {[%clk 0:01:26]}  h6 {[%clk 0:01:26]} 13. Bh4 {[%clk 0:01:24]}  Bb7 {[%clk 0:01:26]} 14. b4 {[%clk 0:01:01]}  cxb4 {[%clk 0:01:25]} 15. axb4 {[%clk 0:01:02]}  Bb6 {[%clk 0:01:25]} 16. Bf2 {[%clk 0:00:55]}  Rc8 {[%clk 0:01:19]} 17. Rc1 {[%clk 0:00:35]}  Ne5 {[%clk 0:01:15]} 18. Bd4 {[%clk 0:00:30]}  Nxd5 {[%clk 0:00:46]} 19. Bxb6 {[%clk 0:00:15]}  Nxb6 {[%clk 0:00:29]} 20. Kf2 {[%clk 0:00:11]}  Nd5 {[%clk 0:00:29]} 21. Nxd5 {[%clk 0:00:09]}  Rxc1 {[%clk 0:00:21]} 22. Nxc1 {[%clk 0:00:10]}  Bxd5 {[%clk 0:00:16]} 23. Qxd5 {[%clk 0:00:10]}  Qh4+ {[%clk 0:00:15]} 24. g3 {[%clk 0:00:09]}  Qxb4 {[%clk 0:00:14]} 25. Be2 {[%clk 0:00:08]}  Qb2 {[%clk 0:00:12]} 26. Rd1 {[%clk 0:00:07]}  Re6 {[%clk 0:00:12]} 27. Kg1 {[%clk 0:00:06]}  Qc3 {[%clk 0:00:10]} 28. Qa8+ {[%clk 0:00:05]}  Kh7 {[%clk 0:00:10]} 29. Qe4+ {[%clk 0:00:04]}  g6 {[%clk 0:00:11]} 30. Qd4 {[%clk 0:00:03]}  Qc2 {[%clk 0:00:09]} 31. Qd2 {[%clk 0:00:03]}  Qc5+ {[%clk 0:00:08]} 32. Qd4 {[%clk 0:00:02]}  Qc2 {[%clk 0:00:08]} 33. Qxa7 {[%clk 0:00:02]}  Kg7 {[%clk 0:00:08]} 34. Qd4 {[%clk 0:00:02]}  Kg8 {[%clk 0:00:08]} 35. Qf2 {[%clk 0:00:02]}  Qb2 {[%clk 0:00:07]} 36. Rf1 {[%clk 0:00:02]}  d5 {[%clk 0:00:07]} 37. Bd3 {[%clk 0:00:02]}  Qc3 {[%clk 0:00:07]} 38. Rd1 {[%clk 0:00:02]}  d4 {[%clk 0:00:03]} 39. Be2 {[%clk 0:00:02]}  Qc2 {[%clk 0:00:02]} 40. Nd3 {[%clk 0:00:02]}  Nxd3 {[%clk 0:00:01]} 41. Rxd3 {[%clk 0:00:02]}  Rxe2 {[%clk 0:00:01]} 42. Qxd4 {[%clk 0:00:01]}  Re1# {[%clk 0:00:01]} 0-1


[Site "https://www.chess.com"]

[Event "Titled Tuesday Blitz June 15 2021"]
[White "Tristan, Leonardo"]
[Black "Golubev, Mikhail"]
[WhiteFideId "113816"]
[BlackFideId "14100983"]
[WhiteElo "2404"]
[BlackElo "2374"]
[Result "1-0"]
[Round "06"]
[TimeControl "180+1"]
[Date "2021.06.15"]
[WhiteClock "0:02:45"]
[BlackClock "0:02:01"]

1. d4 {[%clk 0:03:00]}  Nf6 {[%clk 0:02:56]} 2. Bf4 {[%clk 0:03:01]}  c5 {[%clk 0:02:55]} 3. e3 {[%clk 0:03:01]}  cxd4 {[%clk 0:02:55]} 4. exd4 {[%clk 0:03:01]}  d5 {[%clk 0:02:46]} 5. Nf3 {[%clk 0:03:01]}  Nc6 {[%clk 0:02:44]} 6. Nbd2 {[%clk 0:03:01]}  g6 {[%clk 0:02:34]} 7. Bb5 {[%clk 0:02:51]}  Bg7 {[%clk 0:02:25]} 8. Ne5 {[%clk 0:02:51]}  Bd7 {[%clk 0:02:23]} 9. Nxd7 {[%clk 0:02:51]}  Qxd7 {[%clk 0:02:23]} 10. c3 {[%clk 0:02:51]}  a6 {[%clk 0:02:20]} 11. Bd3 {[%clk 0:02:50]}  O-O {[%clk 0:02:17]} 12. O-O {[%clk 0:02:49]}  Nh5 {[%clk 0:02:10]} 13. Bg5 {[%clk 0:02:47]}  e5 {[%clk 0:02:10]} 14. dxe5 {[%clk 0:02:46]}  Nxe5 {[%clk 0:02:10]} 15. Be2 {[%clk 0:02:46]}  Qf5 {[%clk 0:02:01]} 16. f4 {[%clk 0:02:45]} 1-0


[Site "https://www.chess.com"]

[Event "Titled Tuesday Blitz June 15 2021"]
[White "Tsotsonava, Elene"]
[Black "Suvorov, Alexander"]
[WhiteFideId "13615939"]
[BlackFideId "12977063"]
[WhiteElo "1847"]
[BlackElo "2221"]
[Result "0-1"]
[Round "06"]
[TimeControl "180+1"]
[Date "2021.06.15"]
[WhiteClock "0:00:24"]
[BlackClock "0:00:48"]

1. Nf3 {[%clk 0:03:00]}  d5 {[%clk 0:02:58]} 2. e3 {[%clk 0:02:59]}  Bg4 {[%clk 0:02:50]} 3. d4 {[%clk 0:02:57]}  Nd7 {[%clk 0:02:49]} 4. c4 {[%clk 0:02:57]}  e6 {[%clk 0:02:48]} 5. h3 {[%clk 0:02:57]}  Bh5 {[%clk 0:02:47]} 6. Nc3 {[%clk 0:02:55]}  c6 {[%clk 0:02:47]} 7. Be2 {[%clk 0:02:54]}  Ngf6 {[%clk 0:02:47]} 8. O-O {[%clk 0:02:54]}  Bd6 {[%clk 0:02:47]} 9. b3 {[%clk 0:02:54]}  O-O {[%clk 0:02:46]} 10. Bb2 {[%clk 0:02:54]}  Qe7 {[%clk 0:02:45]} 11. Nd2 {[%clk 0:02:52]}  Bg6 {[%clk 0:02:42]} 12. f4 {[%clk 0:02:52]}  c5 {[%clk 0:02:40]} 13. Nb5 {[%clk 0:02:49]}  cxd4 {[%clk 0:02:30]} 14. Bxd4 {[%clk 0:02:40]}  Bc5 {[%clk 0:02:26]} 15. Nf3 {[%clk 0:02:40]}  a6 {[%clk 0:02:25]} 16. Bxc5 {[%clk 0:02:32]}  Qxc5 {[%clk 0:02:24]} 17. Nbd4 {[%clk 0:02:32]}  Ne4 {[%clk 0:02:23]} 18. Rc1 {[%clk 0:02:26]}  Rac8 {[%clk 0:02:21]} 19. cxd5 {[%clk 0:02:13]}  Qxd5 {[%clk 0:02:22]} 20. Bc4 {[%clk 0:02:01]}  Qc5 {[%clk 0:01:59]} 21. Nh4 {[%clk 0:01:17]}  Ndf6 {[%clk 0:01:24]} 22. Nxg6 {[%clk 0:01:15]}  hxg6 {[%clk 0:01:24]} 23. Qd3 {[%clk 0:01:09]}  b5 {[%clk 0:01:19]} 24. Bxb5 {[%clk 0:00:54]}  Qxc1 {[%clk 0:01:19]} 25. Bxa6 {[%clk 0:00:50]}  Qc3 {[%clk 0:00:53]} 26. Qe2 {[%clk 0:00:29]}  Ra8 {[%clk 0:00:50]} 27. Bc4 {[%clk 0:00:28]}  Rxa2 {[%clk 0:00:47]} 28. Qxa2 {[%clk 0:00:27]}  Qxe3+ {[%clk 0:00:48]} 29. Kh1 {[%clk 0:00:26]}  Ng3+ {[%clk 0:00:46]} 30. Kh2 {[%clk 0:00:24]}  Nxf1+ {[%clk 0:00:47]} 31. Bxf1 {[%clk 0:00:25]}  Qxd4 {[%clk 0:00:48]} 32. g3 {[%clk 0:00:24]} 0-1


[Site "https://www.chess.com"]

[Event "Titled Tuesday Blitz June 15 2021"]
[White "Ulziikhishigjargal, Ochirkhuyag"]
[Black "Janaszak, Dawid"]
[WhiteFideId "4903188"]
[BlackFideId "1119206"]
[WhiteElo "1836"]
[BlackElo "2332"]
[Result "0-1"]
[Round "06"]
[TimeControl "180+1"]
[Date "2021.06.15"]
[WhiteClock "0:00:11"]
[BlackClock "0:00:19"]

1. d4 {[%clk 0:03:00]}  d5 {[%clk 0:02:58]} 2. Nf3 {[%clk 0:02:59]}  Nf6 {[%clk 0:02:57]} 3. Bg5 {[%clk 0:02:58]}  Ne4 {[%clk 0:02:55]} 4. Bf4 {[%clk 0:02:57]}  g6 {[%clk 0:02:50]} 5. Nbd2 {[%clk 0:02:56]}  Bg7 {[%clk 0:02:49]} 6. c3 {[%clk 0:02:55]}  Nd7 {[%clk 0:02:46]} 7. h4 {[%clk 0:02:55]}  h6 {[%clk 0:02:44]} 8. Nxe4 {[%clk 0:02:54]}  dxe4 {[%clk 0:02:44]} 9. Nd2 {[%clk 0:02:54]}  Nf6 {[%clk 0:02:43]} 10. Be5 {[%clk 0:02:50]}  e3 {[%clk 0:02:38]} 11. fxe3 {[%clk 0:02:48]}  O-O {[%clk 0:02:38]} 12. Bxf6 {[%clk 0:02:38]}  exf6 {[%clk 0:02:34]} 13. h5 {[%clk 0:02:35]}  g5 {[%clk 0:02:31]} 14. Qc2 {[%clk 0:02:18]}  f5 {[%clk 0:02:30]} 15. e4 {[%clk 0:02:18]}  fxe4 {[%clk 0:02:29]} 16. Qxe4 {[%clk 0:02:17]}  Re8 {[%clk 0:02:29]} 17. Qf3 {[%clk 0:02:16]}  g4 {[%clk 0:02:21]} 18. Qf4 {[%clk 0:02:13]}  Qe7 {[%clk 0:02:05]} 19. e4 {[%clk 0:02:11]}  c5 {[%clk 0:02:04]} 20. e5 {[%clk 0:02:08]}  cxd4 {[%clk 0:02:01]} 21. cxd4 {[%clk 0:02:09]}  Qb4 {[%clk 0:01:59]} 22. O-O-O {[%clk 0:02:04]}  Bxe5 {[%clk 0:01:49]} 23. Qxh6 {[%clk 0:01:52]}  Qxd4 {[%clk 0:01:46]} 24. Qg5+ {[%clk 0:01:14]}  Kf8 {[%clk 0:01:46]} 25. Re1 {[%clk 0:00:54]}  Qxb2+ {[%clk 0:01:42]} 26. Kd1 {[%clk 0:00:53]}  Qa1+ {[%clk 0:01:40]} 27. Kc2 {[%clk 0:00:50]}  Qb2+ {[%clk 0:01:26]} 28. Kd1 {[%clk 0:00:49]}  Qa1+ {[%clk 0:01:16]} 29. Kc2 {[%clk 0:00:47]}  Qxa2+ {[%clk 0:01:15]} 30. Kd1 {[%clk 0:00:39]}  Qa1+ {[%clk 0:01:13]} 31. Kc2 {[%clk 0:00:39]}  Qxe1 {[%clk 0:01:10]} 32. Bb5 {[%clk 0:00:35]}  Qxh1 {[%clk 0:00:52]} 33. Bxe8 {[%clk 0:00:32]}  Be6 {[%clk 0:00:40]} 34. Bd7 {[%clk 0:00:26]}  Qa1 {[%clk 0:00:29]} 35. Bxe6 {[%clk 0:00:23]}  fxe6 {[%clk 0:00:26]} 36. Qh6+ {[%clk 0:00:17]}  Bg7 {[%clk 0:00:26]} 37. Qf4+ {[%clk 0:00:17]}  Qf6 {[%clk 0:00:24]} 38. Qc7 {[%clk 0:00:14]}  Rd8 {[%clk 0:00:21]} 39. Ne4 {[%clk 0:00:11]}  Qb2# {[%clk 0:00:19]} 0-1


[Site "https://www.chess.com"]

[Event "Titled Tuesday Blitz June 15 2021"]
[White "Villegas, Pierre"]
[Black "Triapishko, Alexandr"]
[WhiteFideId "654183"]
[BlackFideId "14122286"]
[WhiteElo "2411"]
[BlackElo "2490"]
[Result "1-0"]
[Round "06"]
[TimeControl "180+1"]
[Date "2021.06.15"]
[WhiteClock "0:00:21"]
[BlackClock "0:00:01"]

1. d4 {[%clk 0:03:00]}  Nf6 {[%clk 0:02:57]} 2. c4 {[%clk 0:03:01]}  d6 {[%clk 0:02:56]} 3. Nc3 {[%clk 0:03:00]}  Nbd7 {[%clk 0:02:53]} 4. e4 {[%clk 0:03:00]}  e5 {[%clk 0:02:52]} 5. Nge2 {[%clk 0:02:58]}  Be7 {[%clk 0:02:52]} 6. f3 {[%clk 0:02:51]}  O-O {[%clk 0:02:51]} 7. Be3 {[%clk 0:02:51]}  c6 {[%clk 0:02:46]} 8. d5 {[%clk 0:02:51]}  Nh5 {[%clk 0:02:34]} 9. Qd2 {[%clk 0:02:49]}  h6 {[%clk 0:02:33]} 10. O-O-O {[%clk 0:02:15]}  c5 {[%clk 0:02:10]} 11. g4 {[%clk 0:02:11]}  Nf4 {[%clk 0:02:07]} 12. Nxf4 {[%clk 0:02:08]}  exf4 {[%clk 0:02:07]} 13. Bxf4 {[%clk 0:02:09]}  Ne5 {[%clk 0:02:05]} 14. Be2 {[%clk 0:02:09]}  b5 {[%clk 0:01:37]} 15. cxb5 {[%clk 0:01:59]}  a6 {[%clk 0:01:32]} 16. b6 {[%clk 0:01:37]}  Qxb6 {[%clk 0:00:56]} 17. g5 {[%clk 0:01:30]}  hxg5 {[%clk 0:00:33]} 18. Bxg5 {[%clk 0:01:31]}  Bxg5 {[%clk 0:00:34]} 19. Qxg5 {[%clk 0:01:30]}  Rb8 {[%clk 0:00:35]} 20. Rd2 {[%clk 0:01:25]}  f6 {[%clk 0:00:30]} 21. Qg3 {[%clk 0:01:21]}  c4 {[%clk 0:00:31]} 22. f4 {[%clk 0:01:15]}  Nd3+ {[%clk 0:00:31]} 23. Bxd3 {[%clk 0:01:15]}  cxd3 {[%clk 0:00:32]} 24. Qxd3 {[%clk 0:01:15]}  Bd7 {[%clk 0:00:30]} 25. Qd4 {[%clk 0:01:14]}  Qa5 {[%clk 0:00:28]} 26. Rg1 {[%clk 0:01:11]}  Rb4 {[%clk 0:00:24]} 27. Qa7 {[%clk 0:01:00]}  Rxb2 {[%clk 0:00:10]} 28. Rxb2 {[%clk 0:00:47]}  Qxc3+ {[%clk 0:00:09]} 29. Kb1 {[%clk 0:00:47]}  Rf7 {[%clk 0:00:04]} 30. Qb8+ {[%clk 0:00:43]}  Rf8 {[%clk 0:00:03]} 31. Qb3 {[%clk 0:00:42]}  Qd4 {[%clk 0:00:03]} 32. Re1 {[%clk 0:00:41]}  Bb5 {[%clk 0:00:02]} 33. Qe3 {[%clk 0:00:37]}  Qa4 {[%clk 0:00:02]} 34. Ka1 {[%clk 0:00:31]}  Rc8 {[%clk 0:00:01]} 35. Rc1 {[%clk 0:00:28]}  Bc4 {[%clk 0:00:01]} 36. Qd4 {[%clk 0:00:23]}  Rc5 {[%clk 0:00:02]} 37. Rbc2 {[%clk 0:00:22]}  Bb3 {[%clk 0:00:01]} 38. Qxa4 {[%clk 0:00:21]}  Bxa4 {[%clk 0:00:01]} 39. Rxc5 {[%clk 0:00:21]} 1-0


[Site "https://www.chess.com"]

[Event "Titled Tuesday Blitz June 15 2021"]
[White "Vokhidov, Shamsiddin"]
[Black "Khumalo, Keith"]
[WhiteFideId "14204223"]
[BlackFideId "14319470"]
[WhiteElo "2572"]
[BlackElo "1992"]
[Result "1-0"]
[Round "06"]
[TimeControl "180+1"]
[Date "2021.06.15"]
[WhiteClock "0:01:29"]
[BlackClock "0:01:48"]

1. e4 {[%clk 0:03:00]}  c5 {[%clk 0:02:59]} 2. Nf3 {[%clk 0:03:00]}  d6 {[%clk 0:02:59]} 3. d4 {[%clk 0:03:01]}  cxd4 {[%clk 0:03:00]} 4. Qxd4 {[%clk 0:03:01]}  Bd7 {[%clk 0:02:59]} 5. Qe3 {[%clk 0:03:01]}  e6 {[%clk 0:02:58]} 6. c4 {[%clk 0:03:01]}  Bc6 {[%clk 0:02:59]} 7. Nc3 {[%clk 0:03:02]}  Nd7 {[%clk 0:02:59]} 8. Be2 {[%clk 0:03:02]}  Ngf6 {[%clk 0:03:00]} 9. Nd4 {[%clk 0:03:02]}  Be7 {[%clk 0:02:59]} 10. O-O {[%clk 0:03:01]}  O-O {[%clk 0:02:57]} 11. Rd1 {[%clk 0:03:01]}  Qa5 {[%clk 0:02:54]} 12. a3 {[%clk 0:02:59]}  Qc7 {[%clk 0:02:41]} 13. b4 {[%clk 0:02:58]}  b6 {[%clk 0:02:41]} 14. Bb2 {[%clk 0:02:52]}  Rac8 {[%clk 0:02:39]} 15. Rac1 {[%clk 0:02:49]}  Bb7 {[%clk 0:02:39]} 16. f4 {[%clk 0:02:48]}  Rfe8 {[%clk 0:02:38]} 17. g4 {[%clk 0:02:47]}  e5 {[%clk 0:02:34]} 18. Nf5 {[%clk 0:02:46]}  exf4 {[%clk 0:02:34]} 19. Qxf4 {[%clk 0:02:47]}  Bf8 {[%clk 0:02:30]} 20. Nb5 {[%clk 0:02:40]}  Qb8 {[%clk 0:02:28]} 21. Bf3 {[%clk 0:02:32]}  Bxe4 {[%clk 0:02:25]} 22. Nfxd6 {[%clk 0:02:29]}  Bxf3 {[%clk 0:02:25]} 23. Qxf3 {[%clk 0:02:30]}  Bxd6 {[%clk 0:02:20]} 24. Nxd6 {[%clk 0:02:30]}  Ne5 {[%clk 0:02:20]} 25. Bxe5 {[%clk 0:02:26]}  Rxe5 {[%clk 0:02:21]} 26. Nxc8 {[%clk 0:02:24]}  Qxc8 {[%clk 0:02:22]} 27. Rd4 {[%clk 0:02:23]}  h6 {[%clk 0:02:19]} 28. Rcd1 {[%clk 0:02:21]}  Qe6 {[%clk 0:02:19]} 29. h3 {[%clk 0:02:15]}  Re3 {[%clk 0:02:11]} 30. Rd8+ {[%clk 0:02:08]}  Kh7 {[%clk 0:02:11]} 31. Qf5+ {[%clk 0:02:05]}  Qxf5 {[%clk 0:02:12]} 32. gxf5 {[%clk 0:02:06]}  Rxa3 {[%clk 0:02:12]} 33. Rc1 {[%clk 0:02:05]}  Ne4 {[%clk 0:02:04]} 34. c5 {[%clk 0:02:02]}  bxc5 {[%clk 0:02:04]} 35. bxc5 {[%clk 0:02:03]}  Ng3 {[%clk 0:02:03]} 36. Rc2 {[%clk 0:01:55]}  Ra1+ {[%clk 0:02:02]} 37. Kf2 {[%clk 0:01:48]}  Ne4+ {[%clk 0:02:01]} 38. Ke3 {[%clk 0:01:45]}  Re1+ {[%clk 0:02:01]} 39. Kf3 {[%clk 0:01:43]}  Ng5+ {[%clk 0:01:59]} 40. Kf2 {[%clk 0:01:42]}  Re7 {[%clk 0:01:56]} 41. c6 {[%clk 0:01:40]}  Rc7 {[%clk 0:01:57]} 42. Rd7 {[%clk 0:01:37]}  Rc8 {[%clk 0:01:56]} 43. c7 {[%clk 0:01:37]}  Nxh3+ {[%clk 0:01:49]} 44. Kg3 {[%clk 0:01:34]}  Ng5 {[%clk 0:01:49]} 45. Rd8 {[%clk 0:01:34]}  Ne4+ {[%clk 0:01:50]} 46. Kf4 {[%clk 0:01:33]}  Rxc7 {[%clk 0:01:47]} 47. Rxc7 {[%clk 0:01:32]}  Nf6 {[%clk 0:01:48]} 48. Rcc8 {[%clk 0:01:33]}  g5+ {[%clk 0:01:48]} 49. fxg6+ {[%clk 0:01:31]}  Kxg6 {[%clk 0:01:48]} 50. Rc6 {[%clk 0:01:29]} 1-0


[Site "https://www.chess.com"]

[Event "Titled Tuesday Blitz June 15 2021"]
[White "Weetik, Vjacheslav"]
[Black "Jacobson, Brandon"]
[WhiteFideId "4153472"]
[BlackFideId "30901561"]
[WhiteElo "2469"]
[BlackElo "2362"]
[Result "0-1"]
[Round "06"]
[TimeControl "180+1"]
[Date "2021.06.15"]
[WhiteClock "0:00:34"]
[BlackClock "0:01:51"]

1. d4 {[%clk 0:02:52]}  Nf6 {[%clk 0:03:00]} 2. Bf4 {[%clk 0:02:51]}  b6 {[%clk 0:02:59]} 3. Nf3 {[%clk 0:02:51]}  Bb7 {[%clk 0:03:00]} 4. e3 {[%clk 0:02:51]}  g6 {[%clk 0:03:01]} 5. h3 {[%clk 0:02:49]}  Bg7 {[%clk 0:03:01]} 6. Be2 {[%clk 0:02:48]}  O-O {[%clk 0:03:02]} 7. O-O {[%clk 0:02:48]}  d6 {[%clk 0:03:03]} 8. c4 {[%clk 0:02:47]}  Ne4 {[%clk 0:03:03]} 9. Bh2 {[%clk 0:02:45]}  Nd7 {[%clk 0:03:03]} 10. Nfd2 {[%clk 0:02:41]}  Nxd2 {[%clk 0:03:01]} 11. Qxd2 {[%clk 0:02:42]}  e5 {[%clk 0:03:02]} 12. Nc3 {[%clk 0:02:41]}  Qg5 {[%clk 0:03:02]} 13. d5 {[%clk 0:02:33]}  a5 {[%clk 0:02:51]} 14. f4 {[%clk 0:01:57]}  exf4 {[%clk 0:02:33]} 15. exf4 {[%clk 0:01:57]}  Qd8 {[%clk 0:02:34]} 16. f5 {[%clk 0:01:49]}  Bc8 {[%clk 0:02:20]} 17. Kh1 {[%clk 0:01:08]}  Nc5 {[%clk 0:02:15]} 18. fxg6 {[%clk 0:00:52]}  hxg6 {[%clk 0:02:16]} 19. Rae1 {[%clk 0:00:49]}  Bd7 {[%clk 0:02:09]} 20. Bg1 {[%clk 0:00:47]}  Qh4 {[%clk 0:02:05]} 21. Bf2 {[%clk 0:00:46]}  Qh8 {[%clk 0:02:03]} 22. Rd1 {[%clk 0:00:36]}  Bxh3 {[%clk 0:01:49]} 23. gxh3 {[%clk 0:00:33]}  Qxh3+ {[%clk 0:01:50]} 24. Kg1 {[%clk 0:00:34]}  Be5 {[%clk 0:01:51]} 0-1


[Site "https://www.chess.com"]

[Event "Titled Tuesday Blitz June 15 2021"]
[White "Willow, Jonah B"]
[Black "Chigaev, Maksim"]
[WhiteFideId "438804"]
[BlackFideId "4108116"]
[WhiteElo "2261"]
[BlackElo "2646"]
[Result "0-1"]
[Round "06"]
[TimeControl "180+1"]
[Date "2021.06.15"]
[WhiteClock "0:00:03"]
[BlackClock "0:00:59"]

1. e4 {[%clk 0:03:00]}  c5 {[%clk 0:02:59]} 2. Nf3 {[%clk 0:03:01]}  e6 {[%clk 0:02:59]} 3. d4 {[%clk 0:03:01]}  cxd4 {[%clk 0:03:00]} 4. Nxd4 {[%clk 0:03:02]}  Nc6 {[%clk 0:03:01]} 5. Nc3 {[%clk 0:03:00]}  Qc7 {[%clk 0:03:00]} 6. f4 {[%clk 0:02:58]}  Nxd4 {[%clk 0:02:59]} 7. Qxd4 {[%clk 0:02:59]}  a6 {[%clk 0:02:59]} 8. Be3 {[%clk 0:02:52]}  b5 {[%clk 0:02:59]} 9. O-O-O {[%clk 0:02:35]}  Bb7 {[%clk 0:02:59]} 10. Bd3 {[%clk 0:02:35]}  Rc8 {[%clk 0:02:54]} 11. Kb1 {[%clk 0:02:33]}  h5 {[%clk 0:02:53]} 12. Rhe1 {[%clk 0:02:13]}  Ne7 {[%clk 0:02:45]} 13. Bxb5 {[%clk 0:01:35]}  Nc6 {[%clk 0:02:08]} 14. Bxc6 {[%clk 0:01:34]}  Qxc6 {[%clk 0:02:09]} 15. Ka1 {[%clk 0:01:16]}  h4 {[%clk 0:02:08]} 16. f5 {[%clk 0:01:15]}  f6 {[%clk 0:02:02]} 17. fxe6 {[%clk 0:01:07]}  dxe6 {[%clk 0:02:03]} 18. e5 {[%clk 0:01:04]}  f5 {[%clk 0:01:58]} 19. Bg5 {[%clk 0:01:01]}  Bc5 {[%clk 0:01:54]} 20. Qd2 {[%clk 0:00:45]}  Bb4 {[%clk 0:01:43]} 21. Re3 {[%clk 0:00:42]}  Kf7 {[%clk 0:01:40]} 22. Qd7+ {[%clk 0:00:24]}  Kg6 {[%clk 0:01:40]} 23. Bf4 {[%clk 0:00:24]}  Qxd7 {[%clk 0:01:23]} 24. Rxd7 {[%clk 0:00:25]}  Bxg2 {[%clk 0:01:23]} 25. Red3 {[%clk 0:00:18]}  Bc6 {[%clk 0:01:17]} 26. Ra7 {[%clk 0:00:16]}  Ra8 {[%clk 0:01:04]} 27. Rc7 {[%clk 0:00:15]}  Rhc8 {[%clk 0:01:05]} 28. Rxc8 {[%clk 0:00:13]}  Rxc8 {[%clk 0:01:06]} 29. a3 {[%clk 0:00:14]}  Be7 {[%clk 0:01:01]} 30. Rd1 {[%clk 0:00:14]}  Kh5 {[%clk 0:01:00]} 31. Rg1 {[%clk 0:00:04]}  g5 {[%clk 0:01:00]} 32. Bc1 {[%clk 0:00:05]}  Bf3 {[%clk 0:00:58]} 33. h3 {[%clk 0:00:03]}  g4 {[%clk 0:00:58]} 34. hxg4+ {[%clk 0:00:04]}  fxg4 {[%clk 0:00:58]} 35. Bf4 {[%clk 0:00:04]}  Bg5 {[%clk 0:00:58]} 36. Bxg5 {[%clk 0:00:03]}  Kxg5 {[%clk 0:00:59]} 37. Kb1 {[%clk 0:00:03]}  h3 {[%clk 0:00:59]} 0-1


[Site "https://www.chess.com"]

[Event "Titled Tuesday Blitz June 15 2021"]
[White "Yoo, Christopher Woojin"]
[Black "Yanchenko, Roman"]
[WhiteFideId "30909694"]
[BlackFideId "4137329"]
[WhiteElo "2009"]
[BlackElo "2514"]
[Result "1-0"]
[Round "06"]
[TimeControl "180+1"]
[Date "2021.06.15"]
[WhiteClock "0:00:04"]
[BlackClock "0:00:06"]

1. e4 {[%clk 0:03:00]}  e6 {[%clk 0:03:00]} 2. b3 {[%clk 0:02:58]}  d5 {[%clk 0:03:00]} 3. Bb2 {[%clk 0:02:57]}  c5 {[%clk 0:02:58]} 4. exd5 {[%clk 0:02:55]}  exd5 {[%clk 0:02:59]} 5. Nf3 {[%clk 0:02:56]}  Nc6 {[%clk 0:02:59]} 6. Bb5 {[%clk 0:02:56]}  Nf6 {[%clk 0:02:57]} 7. O-O {[%clk 0:02:55]}  Be7 {[%clk 0:02:57]} 8. Bxc6+ {[%clk 0:02:48]}  bxc6 {[%clk 0:02:57]} 9. d3 {[%clk 0:02:47]}  Bg4 {[%clk 0:02:53]} 10. Nbd2 {[%clk 0:02:47]}  O-O {[%clk 0:02:53]} 11. h3 {[%clk 0:02:43]}  Bh5 {[%clk 0:02:52]} 12. Re1 {[%clk 0:02:36]}  Bd6 {[%clk 0:02:47]} 13. g4 {[%clk 0:02:25]}  Nxg4 {[%clk 0:02:38]} 14. hxg4 {[%clk 0:02:24]}  Bxg4 {[%clk 0:02:39]} 15. Qe2 {[%clk 0:02:16]}  Qc7 {[%clk 0:02:38]} 16. Qf1 {[%clk 0:02:16]}  Bf4 {[%clk 0:02:33]} 17. Qg2 {[%clk 0:02:12]}  h5 {[%clk 0:02:31]} 18. Be5 {[%clk 0:02:11]}  Bxe5 {[%clk 0:02:28]} 19. Nxe5 {[%clk 0:02:12]}  f5 {[%clk 0:02:28]} 20. f3 {[%clk 0:01:59]}  Rae8 {[%clk 0:02:28]} 21. Ng6 {[%clk 0:01:58]}  Rxe1+ {[%clk 0:02:25]} 22. Rxe1 {[%clk 0:01:59]}  Rf6 {[%clk 0:02:26]} 23. Ne7+ {[%clk 0:01:58]}  Kf7 {[%clk 0:02:23]} 24. fxg4 {[%clk 0:01:58]}  fxg4 {[%clk 0:02:23]} 25. Nxd5 {[%clk 0:01:56]}  cxd5 {[%clk 0:02:22]} 26. Qxd5+ {[%clk 0:01:57]}  Kg6 {[%clk 0:02:23]} 27. Re5 {[%clk 0:01:57]}  Qf7 {[%clk 0:02:13]} 28. Rg5+ {[%clk 0:01:52]}  Kh6 {[%clk 0:02:13]} 29. Qxf7 {[%clk 0:01:52]}  Rxf7 {[%clk 0:02:14]} 30. Rxc5 {[%clk 0:01:53]}  h4 {[%clk 0:02:11]} 31. Ne4 {[%clk 0:01:50]}  Rf3 {[%clk 0:02:01]} 32. Rg5 {[%clk 0:01:41]}  Rf4 {[%clk 0:02:01]} 33. Ra5 {[%clk 0:01:37]}  Rf3 {[%clk 0:02:00]} 34. Ra6+ {[%clk 0:01:36]}  g6 {[%clk 0:01:59]} 35. Rxa7 {[%clk 0:01:35]}  Re3 {[%clk 0:01:54]} 36. Rf7 {[%clk 0:01:33]}  g3 {[%clk 0:01:48]} 37. Rf4 {[%clk 0:00:53]}  g5 {[%clk 0:01:02]} 38. Rg4 {[%clk 0:00:48]}  Re2 {[%clk 0:00:50]} 39. Nxg5 {[%clk 0:00:26]}  Re1+ {[%clk 0:00:25]} 40. Kg2 {[%clk 0:00:26]}  Re2+ {[%clk 0:00:25]} 41. Kf3 {[%clk 0:00:21]}  Rf2+ {[%clk 0:00:24]} 42. Ke3 {[%clk 0:00:21]}  Kh5 {[%clk 0:00:25]} 43. Ne4 {[%clk 0:00:21]}  Rxc2 {[%clk 0:00:17]} 44. Nf6+ {[%clk 0:00:12]}  Kh6 {[%clk 0:00:16]} 45. Rxh4+ {[%clk 0:00:12]}  Kg5 {[%clk 0:00:17]} 46. Rf4 {[%clk 0:00:07]}  g2 {[%clk 0:00:16]} 47. Ne4+ {[%clk 0:00:07]}  Kh5 {[%clk 0:00:15]} 48. Rf5+ {[%clk 0:00:07]}  Kh4 {[%clk 0:00:14]} 49. Rg5 {[%clk 0:00:07]}  Rxa2 {[%clk 0:00:14]} 50. Kf3 {[%clk 0:00:04]}  Rd2 {[%clk 0:00:05]} 51. Nxd2 {[%clk 0:00:03]}  Kxg5 {[%clk 0:00:06]} 52. Kxg2 {[%clk 0:00:03]}  Kf4 {[%clk 0:00:06]} 53. Kf2 {[%clk 0:00:04]} 1-0


[Site "https://www.chess.com"]